Cogmind - Beta 13 @@@ ROGUE MODE // 2024.05.19 @ 21:58:30 Player: Jahimaih Green Turtle Result: Destroyed self with Mini Grenade Launcher Performance ------------- Evolutions (1) 500 Regions Visited (3) 600 Robots Destroyed (76) 380 Value Destroyed (2158) 2158 Prototype IDs (10) 200 Alien Tech Used (0) 0 Bonus (148) 148 TOTAL SCORE: 3986 Bonus ------- High Alert Combat Kills 148 Cogmind --------- Core Integrity 0/400 Matter 220/300 Energy 265/265 System Corruption 1% Temperature Cool (0) Movement Flying (37) Location -9/Storage Parts ------- > --- POWER (1) -------- Improved Ion Engine > --- PROPULSION (2) --- Improved Flight Unit Improved Flight Unit > --- UTILITY (4) ------ Improved Heat Sink Improved Targeting Computer Improved Targeting Computer Improved Targeting Computer > --- WEAPON (2) ------- Mini Grenade Launcher > --- INVENTORY (5) ---- Improved Flight Unit Improved Flight Unit Compact Battery (200) Improved Targeting Computer Peak State ------------ > --- POWER ------------ Light Nuclear Core > --- PROPULSION ------- Improved Flight Unit Improved Flight Unit > --- UTILITY ---------- Improved Heat Sink Improved Targeting Computer Improved Targeting Computer Improved Targeting Computer > --- WEAPON ----------- Advanced Beam Cannon > --- INVENTORY -------- Ion Engine Improved Flight Unit Improved Flight Unit Improved Targeting Computer Mini Grenade Launcher [Rating: 22] Favorites ----------- Power Light Ion Engine Engine Light Ion Engine Power Core Light Nuclear Core Propulsion Flight Unit Treads Improved Treads Leg Aluminum Leg Wheel Wheel Hover Unit Hover Unit Flight Unit Flight Unit Utility Improved Targeting Computer Device Improved Heat Sink Storage Small Storage Unit Processor Improved Targeting Computer Hackware Hacking Suite Weapon Particle Gun Energy Gun Particle Gun Energy Cannon Advanced Beam Cannon Ballistic Gun Assault Rifle Ballistic Cannon Improved Light Cannon Launcher Mini Grenade Launcher Build | -11 -10 -9 -9 ------- Run | Yrd Mat Mat Sto Slots Evolved 2 | . . 2 . Power . | . . . . Propulsion . | . . . . Utility 2 | . . 2 . Weapon . | . . . . Parts Attached 57 | 7 25 16 9 Power 9 | 1 4 2 2 Engine 7 | 1 3 2 1 Core 2 | . 1 . 1 Reactor . | . . . . Propulsion 22 | 2 11 5 4 Treads 5 | . 5 . . Leg 1 | . 1 . . Wheel 2 | 2 . . . Hover 4 | . 4 . . Flight 10 | . 1 5 4 Utility 12 | 2 5 3 2 Device 2 | 1 . . 1 Storage 1 | 1 . . . Processor 8 | . 5 2 1 Hackware 1 | . . 1 . Protection . | . . . . Artifact . | . . . . Weapon 14 | 2 5 6 1 Energy Gun 7 | 2 3 2 . Energy Cannon 3 | . . 3 . Ballistic Gun 2 | . 2 . . Ballistic Cannon 1 | . . 1 . Launcher 1 | . . . 1 Special Weapon . | . . . . Impact Weapon . | . . . . Slashing Weapon . | . . . . Piercing Weapon . | . . . . Special Melee Weapon . | . . . . Unidentified Prototypes . | . . . . Parts Lost 14 | . 7 4 3 Power 5 | . 2 1 2 Propulsion 2 | . 1 1 . Utility 3 | . 2 1 . Weapon 4 | . 2 1 1 Highest Loss Streak 4 | . 4 3 2 To Critical Strikes . | . . . . Average Slot Usage (%) 90 | . 95 85 84 Engine 7 | . 6 8 6 Core 3 | . 5 . 2 Treads 3 | . 8 . . Hover 7 | . 14 2 . Flight 11 | . 3 17 21 Device 1 | . . . 5 Processor 29 | . 26 33 31 Hackware 4 | . . 10 5 Energy Gun 10 | . 17 4 . Energy Cannon 3 | . . 6 8 Ballistic Gun 4 | . 9 . . Naked Turns . | . . . . Heaviest Build 12 | 12 12 10 10 Greatest Support 46 | 26 46 12 10 Greatest Overweight (x) 3 | . 3 2 1 Average Overweight (x) . | . . . . Largest Inventory Capacity 8 | 8 8 5 5 Average Capacity 5 | 7 5 5 5 Most Carried 7 | 4 7 5 5 Average Carried 4 | 2 4 4 4 Final Capacity 8 | 8 5 5 5 Final Carried 5 | 3 5 5 4 Class Distribution -------------------- 96% | Mutant 3% | Scavenger-Mutant Dominant Class ---------------- Mutant | -10/Materials Mutant | -9/Materials Mutant | -9/Storage Resources | -11 -10 -9 -9 ----------- Run | Yrd Mat Mat Sto Matter Collected 858 | 215 338 215 90 Remotely . | . . . . Salvage Created 2697 | 15 629 1186 867 Parts 162 | 4 34 68 56 Haulers Intercepted 9 | . 1 6 2 Recyclers Shooed 1 | . . . 1 Parts Field Recycled . | . . . . Retrieved Matter . | . . . . Parts Self-Destructed . | . . . . Prevented . | . . . . Kills | -11 -10 -9 -9 ------- Run | Yrd Mat Mat Sto Combat Hostiles Destroyed 51 | . 11 20 20 Guns 18 | . 11 7 . Cannons 27 | . . 11 16 AOE 3 | . . . 3 Classes Destroyed 12 | 1 4 3 4 Worker 1 | . . . 1 Tunneler 1 | 1 . . . Hauler 9 | . 1 6 2 Mechanic 1 | . . . 1 Operator 6 | . 2 2 2 Watcher 7 | . 3 4 . Swarmer 7 | . . 3 4 Grunt 30 | . 11 8 11 Brawler 1 | . . 1 . Duelist 1 | . . . 1 Protector 1 | . . . 1 Sentry 11 | . . 8 3 Best Kill Streak 7 | 1 3 5 7 Combat Bots Only 6 | . 2 3 6 Max Kills in Single Turn 2 | 1 1 1 2 Gunslinging . | . . . . Exploded 1 | . . . 1 Melee . | . . . . Uniques/NPCs Destroyed . | . . . . Combat | -11 -10 -9 -9 -------- Run | Yrd Mat Mat Sto Hostile Shots Fired 201 | . 69 62 70 Missed 63 | . 17 21 25 Damage Taken 1793 | . 670 528 595 Core 531 | . 128 133 270 Absorbed by Shields . | . . . . Regen/Repaired (Parts) 83 | . . 83 . Core Remaining (%) 74 | 100 48 . . Volleys Fired 250 | 1 63 98 88 Largest 2 | 2 2 2 1 Hottest 110 | 90 105 110 68 Shots Fired 325 | 2 115 120 88 Gun 164 | 2 115 47 . Cannon 152 | . . 73 79 Launcher 9 | . . . 9 Special . | . . . . Kinetic 50 | . 34 16 . Thermal 261 | 2 81 99 79 Explosive 9 | . . . 9 Electromagnetic 5 | . . 5 . Robot Hit Streak 20 | 1 11 15 20 Robot Miss Streak 3 | . 3 2 3 Penetration Max . | . . . . Secondary Targets 1 | . . 1 . Max Gunslinging Chain 1 | . . 1 . Shots Hit Robots 250 | 1 77 98 74 Core Hits 100 | 1 34 34 31 Critical Kills 3 | . . 2 1 Critical Parts Destroyed . | . . . . Critical Strikes 4 | . 1 2 1 Burn 1 | . 1 . . Meltdown 3 | . . 2 1 Melee Attacks . | . . . . Impact . | . . . . Slashing . | . . . . Piercing . | . . . . Sneak Attacks . | . . . . Combat Hostiles . | . . . . Follow-up Attacks . | . . . . Damage Inflicted 4698 | 13 979 1787 1919 Guns 1620 | 13 979 628 . Cannons 2468 | . . 1159 1309 Explosions 610 | . . . 610 Melee . | . . . . Ramming . | . . . . Kinetic 397 | . 182 215 . Thermal 3624 | 13 797 1505 1309 Explosive 610 | . . . 610 Electromagnetic 67 | . . 67 . Impact . | . . . . Slashing . | . . . . Piercing . | . . . . Highest Corruption 1 | . . 1 1 Average Corruption 1 | . . 1 1 Corruption Purged . | . . . . Corruption Blocked . | . . . . Effects 11 | . . 10 1 Message Errors 5 | . . 5 . Matter Fused 1 | . . 1 . Energy Discharges 2 | . . 1 1 Data Loss (minor) 1 | . . 1 . Misfires 1 | . . 1 . Alerts 1 | . . 1 . Overload Shots . | . . . . Overflow Damage 98 | . . 14 84 Projectiles 26 | . . 14 12 Explosions 72 | . . . 72 Melee . | . . . . Knockbacks 3 | . . 3 . Impact . | . . . . Kinetic 3 | . . 3 . Secondary . | . . . . Self-Inflicted Damage 117 | . . . 117 Shots 4 | . . . 4 Rammed . | . . . . Targets Rammed . | . . . . Kicked . | . . . . Crushed . | . . . . Highest Temperature 339 | 30 339 245 305 Average Temperature 74 | 17 84 65 77 Received Heat Transfer 678 | . 393 129 156 Effects 2 | . . . 2 Interference 2 | . . . 2 Siege Activations . | . . . . Robots Corrupted . | . . . . Combat Hostiles . | . . . . Parts Fried . | . . . . Impact Corruptions . | . . . . Robots Melted 4 | . . 3 1 Combat Hostiles 3 | . . 2 1 Parts Melted 16 | . 2 9 5 Heat Transferred 7352 | 37 2041 3034 2240 Parts Sabotaged . | . . . . Parts Stolen . | . . . . Parts Stripped . | . . . . Power Chain Reactions . | . . . . Alert | -11 -10 -9 -9 ------- Run | Yrd Mat Mat Sto Peak Influence 789 | 5 154 395 789 Initial 166 | . 3 . 166 Average 194 | 1 76 225 532 Maximum Alert Level 3 | . . 1 3 Low Security (%) 62 | 100 100 34 9 Level 1 25 | . . 65 6 Level 2 9 | . . . 63 Level 3 2 | . . . 20 Level 4 . | . . . . Level 5 . | . . . . High Security . | . . . . Max Security . | . . . . Squads Dispatched 8 | . 3 2 3 Investigation 1 | . 1 . . Extermination . | . . . . Reinforcement 6 | . 2 2 2 Assault 1 | . . . 1 Garrison . | . . . . Intercept . | . . . . Searches Triggered . | . . . . Construction Impeded . | . . . . Haulers Reinforced . | . . . . Active Scanning Responses . | . . . . Cargo Convoy Interrupts . | . . . . Stealth | -11 -10 -9 -9 --------- Run | Yrd Mat Mat Sto Distress Signals 5 | . 1 2 2 Communications Jammed . | . . . . Distress Signals . | . . . . Times Spotted 80 | . 19 33 28 Peak Tracking Total 7 | . 3 4 7 Tactical Retreats 3 | . 1 1 1 Traps | -11 -10 -9 -9 ------- Run | Yrd Mat Mat Sto Traps Triggered 1 | . 1 . . Indirectly . | . . . . Trap Hack Attempts . | . . . . Triggered . | . . . . Disarmed . | . . . . Reprogrammed 6 | . . 6 . Reused 1 | . . 1 . Traps Extracted . | . . . . Installed . | . . . . Triggered 1 | . . 1 . Machines | -11 -10 -9 -9 ---------- Run | Yrd Mat Mat Sto Machines Disabled 5 | . . 1 4 Max in Single Turn 1 | . . 1 1 Garrison Access 1 | . . . 1 Machines Repaired . | . . . . Machines Dismantled . | . . . . Machines Sabotaged . | . . . . Overloaded Fab Kills . | . . . . Hacking | -11 -10 -9 -9 --------- Run | Yrd Mat Mat Sto Machines Accessed 24 | . 9 13 2 Terminals 17 | . 6 9 2 Fabricators . | . . . . Repair Stations 2 | . 1 1 . Recycling Units 4 | . 2 2 . Scanalyzers 1 | . . 1 . Garrison Access . | . . . . Total Hacks 59 | . 18 35 6 Successful 33 | . 7 23 3 Failed 26 | . 11 12 3 Catastrophic 2 | . 2 . . Database Lockouts . | . . . . Manual 1 | . . 1 . Terminals 38 | . 13 19 6 Fabricators . | . . . . Repair Stations 13 | . 3 10 . Recycling Units 5 | . 2 3 . Scanalyzers 3 | . . 3 . Garrison Access . | . . . . Terminal Hacks 20 | . 7 10 3 Robot Analysis 2 | . 1 1 . Prototype ID Bank 5 | . 2 2 1 Level Access Points 1 | . . 1 . Branch Access Points 1 | . . 1 . Emergency Access Points 1 | . . 1 . Alert Level 2 | . 1 1 . Unreport Threat 2 | . . 1 1 Locate Traps 2 | . 2 . . Reprogram Traps 1 | . . 1 . Assault Status 1 | . . 1 . Hauler Manifests 2 | . 1 . 1 Fabricator Hacks . | . . . . Repair Station Hacks 8 | . . 8 . Scan Component 4 | . . 4 . Repair 4 | . . 4 . Recycling Unit Hacks 2 | . . 2 . Retrieve Components 2 | . . 2 . Scanalyzer 3 | . . 3 . Insert Component 2 | . . 2 . Analyze 1 | . . 1 . Garrison Access Hacks . | . . . . Unauthorized Hacks . | . . . . Terminals . | . . . . Fabricators . | . . . . Repair Stations . | . . . . Recycling Units . | . . . . Scanalyzers . | . . . . Garrison Access . | . . . . Data Cores Recovered 2 | . 1 1 . Used 1 | . 1 . . Hacking Detections 23 | . 8 13 2 Full Trace Events . | . . . . Feedback Events . | . . . . Feedback Blocked . | . . . . Robot Schematics Acquired . | . . . . Robots Built . | . . . . Authchips . | . . . . Time . | . . . . Total Robot Build Rating . | . . . . Part Schematics Acquired 1 | . . 1 . Parts Built . | . . . . Authchips . | . . . . Time . | . . . . Total Part Build Rating . | . . . . Parts Repaired 4 | . . 4 . Time 141 | . . 141 . Parts Recycled . | . . . . Recycled Matter . | . . . . Retrieved Matter . | . . . . Retrieved Components 13 | . . 13 . Parts Scanalyzed 1 | . . 1 . Part Schematics Acquired 1 | . . 1 . Parts Damaged . | . . . . Bothacking | -11 -10 -9 -9 ------------ Run | Yrd Mat Mat Sto Used RIF Installer . | . . . . Robots Hacked . | . . . . Non-combat . | . . . . Combat . | . . . . Robot Hacks Applied . | . . . . Relay Couplers Released 2 | . . . 2 Machine Destruction 2 | . . . 2 Fabnet Peak Effective % . | . . . . Robots Rewired . | . . . . Allies Hacked . | . . . . Hacks Repelled . | . . . . Allies | -11 -10 -9 -9 -------- Run | Yrd Mat Mat Sto Total Allies . | . . . . Largest Group . | . . . . Highest-Rated Group . | . . . . Highest-Rated Ally . | . . . . Total Orders . | . . . . Ally Attacks . | . . . . Total Damage . | . . . . Kills . | . . . . Allies Corrupted . | . . . . Allies Melted . | . . . . Intel | -11 -10 -9 -9 ------- Run | Yrd Mat Mat Sto Robot Analysis Total 2 | . 1 1 . Derelict Logs Recovered . | . . . . Drone Launches . | . . . . Drone Recoveries . | . . . . Exploration | -11 -10 -9 -9 ------------- Run | Yrd Mat Mat Sto Turns Passed 2854 | 77 1309 1057 411 Spaces Moved 2704 | 63 1091 1180 370 Core 28 | 7 18 3 . Treads 124 | . 124 . . Legs 16 | . 16 . . Wheels 64 | 56 8 . . Hover 1064 | . 925 139 . Flight 1408 | . . 1038 370 Fastest Speed 37 | 50 50 37 37 Average Speed 62 | 85 90 43 38 Slowest Speed 200 | 90 200 150 110 Overloaded Moves . | . . . . Propulsion Burnouts . | . . . . Robots Hopped 20 | . . 12 8 Cave-ins Triggered . | . . . . Exploration Rate (%) 56 | 3 98 87 39 Regions Visited 3 Branch Regions 1 Pre-discovered Areas 1 | . . . 1 Known Exits Taken 1 | . . 1 . Unknown Exits Taken 2 | 1 1 . . Scrap Searched . | . . . . Spaces Dug . | . . . . Terrain Destroyed 58 | . . . 58 Melee . | . . . . Projectile . | . . . . AOE 58 | . . . 58 Terrain Rammed . | . . . . Walls Destroyed . | . . . . Machines Disabled . | . . . . Actions | -11 -10 -9 -9 --------- Run | Yrd Mat Mat Sto Total 3528 | 84 1309 1589 546 Wait 433 | . 82 278 73 Move 2663 | 62 1090 1157 354 Hop 18 | . . 10 8 Pick Up 56 | 12 23 15 6 Fast Attach 27 | . 13 9 5 Attach 24 | 7 8 6 3 Detach . | . . . . Swap 6 | . 4 1 1 Drop 51 | 2 26 15 8 Fire 250 | 1 63 98 88 Melee . | . . . . Ram . | . . . . Kick . | . . . . Crush . | . . . . Escape Stasis . | . . . . Rewire . | . . . . Trap . | . . . . Miscellaneous . | . . . . Route ------- -11/Scrapyard -10/Materials (discovered 4 exits: *Mat x3 / [*Min]) -9/Materials (discovered 6 exits: *Mat x3 / *Min / *Sto x2) -9/Storage History --------- Turn | Location | Event 12 | -11/Scrapyard | Discovered new exit (range 15) 78 | -11/Scrapyard | Entered Materials 303 | -10/Materials | Build established: Mutant 337 | -10/Materials | Lost 4 parts (1p1n2w) 570 | -10/Materials | Discovered new exit (range 12) 891 | -10/Materials | Core integrity fell below 50% 911 | -10/Materials | Discovered new exit (range 5) 1049 | -10/Materials | Discovered new exit (range 15) 1121 | -10/Materials | Discovered new exit (range 9) 1387 | -10/Materials | Entered another Materials area 1387 | -9/Materials | Evolved 2 slots: Utility x2 1411 | -9/Materials | Identified exit to Materials 1484 | -9/Materials | Lost 3 parts (1p1n1u) 1607 | -9/Materials | Discovered new exit (range 15) 2006 | -9/Materials | Repaired Flight Unit 2033 | -9/Materials | Repaired Lgt. Ion Engine 2086 | -9/Materials | Repaired Adv. Beam Cannon 2125 | -9/Materials | Repaired Imp. Heat Sink 2312 | -9/Materials | Identified exit to Mines 2312 | -9/Materials | Identified exit to Storage 2444 | -9/Materials | Entered Storage 2597 | -9/Storage | Learned location of Armory (-4) 2640 | -9/Storage | Core integrity fell below 50% 2774 | -9/Storage | Core integrity fell below 20% 2855 | -9/Storage | Destroyed self with Mini Grenade Launcher Last Messages --------------- U-05 Engineer builds a Door. Dropped Imp. Flight Unit. U-05 Engineer lays Concrete. U-05 Engineer builds a Wall. K-01 Serf collects debris. Acquired Imp. Flight Unit. Dropped Imp. Flight Unit. Acquired Imp. Flight Unit. Dropped Imp. Flight Unit. Acquired Imp. Flight Unit. K-01 Serf collects debris. U-05 Engineer lays Concrete. K-01 Serf cleans the Compression Vault. O-16 Technician sends out distress signal. K-01 Serf cleans the Compression Vault. Destroyed Datajack. O-16 Technician destroyed. G-34 Mercenary destroyed. The unstable cave ceiling collapses. M-13 Machinist destroyed. Map ----- +----------------------------------------------------+ | ?????????????????????????????????????????????????? | | ?????????????????????????????????????????????????? | | ?????????????????????????????????????????????????? | | ?????????????????????????????????????????????????? | | ?????????????????????????????????????????????????? | | ?????????????????????????????????????????????????? | | ?????????????????????????????????????????????????? | | ?????????????????????????????????????????????????? | | ?????????????????????????????????????????????????? | | ?????????????????????????????????????????????????? | | ?????????????????????????????????????????????????? | | ?????????????????????????????????????????????????? | | ?????????????????????????????????????????????????? | | ?????????????????????????????????????????????????? | | ?????????????????????????????????????????????????? | | ?????????????????????????????????????????????????? | | ???????????????? ??????????????????????????????? | | ???????????????? ??????????????????????????????? | | ???????????????? ??????????????????????????????? | | ???????????????# #?????????????????????????????? | | ???????????????# #?????????????????????????????? | | ???????????????# #?????##########??????????????? | | ???????????????# #?????# """ ##?????????????? | | ???????????????# ####### "Y" #?????????????? | | ??????????????## #??????????????? | | ??????????????# @ !!##?????????????? | | ?????????? !! # a !!"#?????????????? | | ?????????? %Y """ T#?????????????? | | ??????????? * # """ "#?????????????? | | ???????????#### % """ ##?????????????? | | ???????????######+ # * #??????????????? | | ???????????# ######u####??????????????? | | ???????????# #### #????????????????? | | ???????????# + #????????????????? | | ???????????# #### #????????????????? | | ???????????# #??# #????????????????? | | ???????????################## ##????????????????? | | ???????????????# # #?????????????????? | | ???????????????# + #??###????????????? | | ???????????????# """ """ # #### #####????????? | | ???????????????# """ """ # # #????????? | | ???????????????? """ """ + # """ #????????? | | ?????????????????# ########## # "T"[%[ #????????? | | ???#####????????????????##### # = #????????? | | ???# #?##########?????# # # [ #????????? | | ???#%==#?# #????## ## # " ##???????? | | ???#[ !#?# !" #????# / # ] #???????? | | #####+#### G" ##???#T # # ] #???????? | | !=%!% #= "!" #???##" ##%%+ *% ##???????? | | == !+% ##????#==##= ##########????????? | +----------------------------------------------------+ Best States ------------- Heat Dissipation 42 Energy Generation 14 Energy Capacity 265 Matter Stores 300 Matter Capacity 300 Sight Range 16 Terrain Scan Density 10 Evasion (%) 62 Targeting Accuracy 24 Recoil Reduction 2 Offensive Hacking 10 Item Schematics ----------------- Flight Unit | -9/Materials | Scanalyzed Robot Schematics ------------------ None Fabricated ------------ Nothing Alien Tech Used ----------------- None Achievements -------------- Universal Adapter Challenges ------------ None Game ------ Seed RegenerativeMyomerReplicator Manual? 0 Play Time 00:55:18 Cumulative 11.2 hours Start 2024.05.19 @ 21:04:02 End 2024.05.19 @ 21:58:30 Sessions 1 Manual Loads 0 Difficulty Rogue Special Mode None Game No. 9 Rogue 9 Adventurer 0 Explorer 0 Win Type - Total 0 Types 0/0/0/0/0/0/0/0/0 Lore% 16 Gallery% 14 Achievement% 16 Wizard Run 0 Options --------- Layout 1 ASCII 0 Keyboard 0 Movement Mouse Keybinds 0 Fullscreen 1 Font 24/Smallcaps Map View 50x35 Zoom Use 0% Tactical HUD 0 Map Filters NONE Filters NONE Steam 1 RUN: fca19de6-0464-4bc1-9207-8e28673f2058